[Event "2nd Bassano Easter 2022"]
[Site "Bassano del Grappa"]
[Date "2022.04.16"]
[Round "6.10"]
[White "Nikolov, Momchil"]
[Black "Weber, Samuel"]
[Result "1/2-1/2"]
[ECO "E32"]
[WhiteElo "2501"]
[BlackElo "2250"]
[Annotator "TA"]
[PlyCount "68"]
[EventDate "2022.04.14"]
[EventType "swiss"]
[EventCountry "ITA"]
[SourceTitle "playchess.com"]
[Source "ChessBase"]
[SourceQuality "1"]
[TimeControl "30/3600+30:1800+30"]

{[%evp 9,68,7,20,-6,-8,-13,-15,-9,9,11,6,14,13,7,19,0,0,0,10,6,39,39,65,28,40,0,0,0,0,6,25,15,17,0,0,0,0,-17,-33,-104,-101,-286,-136,-110,0,0,0,0,0,-29995,-12822,-1530,0,-72,0,0,0,0,0,0,0]} 1. d4 {[%emt 0:00:53]} Nf6 {[%emt 0:01:55]} 2. c4 {[%emt 0:00:10]} e6 {[%emt 0:00:04]} 3. Nc3 {[%emt 0:00:17]} Bb4 {[%emt 0:00:09]} 4. Qc2 {[%emt 0:00:08]} d6 {[%emt 0:00:06]} 5. Bd2 {[%emt 0:06:32][%cal Bc1d2,Bd2c3,Bc3d4][%mdl 32]} c5 {[%emt 0:03:39]} 6. a3 {[%emt 0:02:06] E32: Nimzo-Indian: Classical (4 Qc2): 4...0-0.} Bxc3 {[%emt 0:02:32]} 7. Bxc3 {[%emt 0:00:12]} cxd4 {[%emt 0:00:07]} 8. Bxd4 {[%emt 0:00:08] [#]} Nc6 $146 {[%emt 0:00:06]} ({Predecessor:} 8... e5 9. Bc3 Qc7 10. e3 O-O 11. Nf3 Na6 12. b4 Be6 13. Bb2 Rac8 14. Rc1 b5 {0-1 (39) Terrieux,K (2455)-Winants,L (2513) France 2009}) 9. Bc3 {[%emt 0:00:17]} O-O {[%emt 0:00:07]} 10. Nf3 {[%emt 0:03:03][%cal Bg1f3,Bf3g5,Bg5e4][%mdl 32]} e5 {[%emt 0:01:52]} 11. e3 {[%emt 0:02:37]} Bg4 {[%emt 0:03:38]} 12. Bd3 {[%emt 0:07:17]} Re8 {[%emt 0:07:18] [#] Hoping for ...e4.} 13. Ng5 {[%emt 0:03:54] Inhibits e4.} h6 {[%emt 0:05:52]} 14. Ne4 {[%emt 0:02:42]} Rc8 {[%emt 0:03:48][%cal Oc6d4]} 15. O-O {[%emt 0:01:03]} a6 {[%emt 0:05:31]} 16. h3 {[%emt 0:09:35] Threatens to win with Nxf6+.} Nxe4 {[%emt 0:03:48]} 17. hxg4 {[%emt 0:01:58]} (17. Bxe4 $5 {[%cal Rh3g4]} Be6 18. Qd3 $14) 17... Nxc3 {[%emt 0:01:50]} 18. Qxc3 {[%emt 0:00:06]} e4 {[%emt 0:07:29]} 19. Be2 {[%emt 0:00:41]} Qg5 {[%emt 0:02:26]} (19... Ne5 {with more complications.} 20. Rad1 Qh4 21. Qd4 Nxg4 22. Qxd6 h5) 20. Rad1 {[%emt 0:05:14]} (20. Qb3 $5 {[%cal Rb3b7]}) 20... Ne5 $1 {[%emt 0:03:39][%cal Oh6h5]} 21. Rxd6 {[%emt 0:07:36]} h5 {[%emt 0:02:23][%cal Bh6h5,Bh5g4,Bg4g3][%mdl 32]} 22. Rfd1 {[%emt 0:06:56]} ({Much weaker is} 22. gxh5 Nf3+ 23. Bxf3 exf3 $17) 22... hxg4 {[%emt 0:01:37][%cal Oe5f3]} 23. R1d5 {[%emt 0:05:00]} g3 {[%emt 0:03:07]} 24. Qe1 {[%emt 0:00:28]} ({White should play} 24. c5 $1 $15) 24... Rc6 {[%emt 0:03:18]} 25. Qd2 $2 {[%emt 0:03:18]} (25. c5 $17) 25... Rxd6 {[%emt 0:02:50]} (25... gxf2+ $19 26. Kxf2 Re6 27. Rxe6 Rxe6) 26. Rxd6 $17 {[%emt 0:00:02]} Qh4 {[%emt 0:03:11]} (26... gxf2+ $17 27. Kxf2 Qh4+ 28. Kg1 Kh7) 27. fxg3 $11 {[%emt 0:00:28]} Qxg3 {[%emt 0:00:02][%cal Oe5d3] aiming for ...Nd3!} 28. Rd8 {[%emt 0:00:55] Against Nd3} Rxd8 {[%emt 0:00:46]} 29. Qd4 {[%emt 0:01:24][%mdl 8192]} Rd6 30. Qxd6 $19 {[%emt 0:00:00]} Kh7 $2 {[%emt 0:00:31]} (30... Nf3+ $19 31. Bxf3 Qxd6 32. Bxe4 Qe7) 31. Qd2 {[%emt 0:00:18] [#]} (31. Kf1 $11 {remains equal.}) 31... f5 {[%emt 0:01:24]} (31... Nf3+ $1 $17 32. Bxf3 exf3) 32. c5 $11 {[%emt 0:09:25] The position is equal.} Nf7 {[%emt 0:11:18]} 33. Kf1 {[%emt 0:04:16]} Nh6 {[%emt 0:11:38]} 34. Qd4 {[%emt 0:05:11]} Qh2 {[%emt 0:01:48] Weighted Error Value: White=0.42/Black=0.50} 1/2-1/2

[Event "2nd Bassano Easter 2022"]
[Site "Bassano del Grappa"]
[Date "2022.04.17"]
[Round "7.1"]
[White "Basso, Pier Luigi"]
[Black "Bernadskiy, Vitaliy"]
[Result "1/2-1/2"]
[ECO "E11"]
[WhiteElo "2600"]
[BlackElo "2601"]
[Annotator "TA"]
[PlyCount "25"]
[EventDate "2022.04.14"]
[EventType "swiss"]
[EventCountry "ITA"]
[SourceTitle "playchess.com"]
[Source "ChessBase"]
[SourceQuality "1"]
[TimeControl "30/3600+30:1800+30"]

{[%evp 24,25,24,0]} 1. d4 {[%emt 0:00:49]} Nf6 {[%emt 0:00:05]} 2. c4 {[%emt 0:00:11]} e6 {[%emt 0:00:05]} 3. g3 {[%emt 0:00:06]} d5 {[%emt 0:00:11]} 4. Nf3 {[%emt 0:00:05]} Bb4+ {[%emt 0:00:15]} 5. Bd2 {[%emt 0:00:05]} Be7 {[%emt 0:00:04]} 6. Bg2 {[%emt 0:00:05]} O-O {[%emt 0:00:06]} 7. O-O {[%emt 0:00:04]} Nbd7 {[%emt 0:00:09]} 8. Qc2 {[%emt 0:00:05]} c6 {[%emt 0:00:12]} 9. Bf4 {[%emt 0:00:07] [#]} Nh5 $146 {[%emt 0:00:06]} ({Predecessor:} 9... a5 10. Nbd2 Nh5 11. Be3 f5 12. Nb3 Nhf6 13. Nc1 Ne4 14. Nd3 Bf6 15. Rac1 Qe7 16. h4 a4 17. Bf4 h6 18. Nfe5 Kh7 19. f3 Nd6 {1-0 (46) Matlakov,M (2674)-Caruana,F (2792) Warsaw 2021}) 10. Bc1 {[%emt 0:00:04]} Nhf6 {[%emt 0:00:09]} 11. Bf4 {[%emt 0:00:07]} Nh5 {[%emt 0:00:05]} 12. Bc1 {[%emt 0:00:04]} Nhf6 {[%emt 0:00:03]} 13. Bf4 {[%emt 1:05:08] 13.Re1 is the recent fashion.} 1/2-1/2

[Event "2nd Bassano Easter 2022"]
[Site "Bassano del Grappa"]
[Date "2022.04.17"]
[Round "7.2"]
[White "Postny, Evgeny"]
[Black "Heberla, Bartlomiej"]
[Result "1/2-1/2"]
[ECO "D36"]
[WhiteElo "2567"]
[BlackElo "2570"]
[Annotator "TA"]
[PlyCount "84"]
[EventDate "2022.04.14"]
[EventType "swiss"]
[EventCountry "ITA"]
[SourceTitle "playchess.com"]
[Source "ChessBase"]
[SourceQuality "1"]
[TimeControl "30/3600+30:1800+30"]

{[%evp 25,84,10,15,0,0,0,3,0,28,25,11,31,16,22,19,18,18,20,12,23,23,14,40,0,24,0,22,4,23,31,25,18,18,7,18,21,23,16,4,4,4,7,11,0,0,0,0,0,0,0,0,0,0,0,0,0,0,0,0,0,0]} 1. c4 {[%emt 0:00:31]} e6 {[%emt 0:02:55]} 2. Nc3 {[%emt 0:01:24]} d5 {[%emt 0:00:10]} 3. d4 {[%emt 0:00:07]} Nf6 {[%emt 0:00:04]} 4. Bg5 {[%emt 0:01:42]} Be7 {[%emt 0:00:19]} 5. e3 {[%emt 0:00:08]} O-O {[%emt 0:02:56]} 6. Nf3 {[%emt 0:00:14]} h6 {[%emt 0:01:27]} 7. Bh4 {[%emt 0:00:08]} Nbd7 {[%emt 0:00:05]} 8. cxd5 {[%emt 0:01:59]} exd5 {[%emt 0:01:58]} 9. Bd3 {[%emt 0:00:28]} c6 {[%emt 0:00:04]} 10. Qc2 {[%emt 0:00:27]} Re8 {[%emt 0:00:04]} 11. O-O {[%emt 0:00:17]} Ne4 {[%emt 0:00:04]} 12. Bxe7 {[%emt 0:02:11]} Qxe7 {[%emt 0:00:04]} 13. b4 {[%emt 0:01:58][%cal Bb2b4,Bb4b5][%mdl 32]} Ndf6 {[%emt 0:00:05]} 14. a3 {[%emt 0:02:20] D36: Queen's Gambit Declined: Exchange Variation: Main line (5 Bg5 c6 6 Qc2).} Bf5 {[%emt 0:01:42] [#]} 15. Ne5 $146 {[%emt 0:04:56]} ({Predecessor:} 15. Na4 h5 16. h3 Bh7 17. Ne5 Nd6 18. Bxh7+ Nxh7 19. Nc5 a6 20. a4 Nf8 21. a5 {½-½ (65) Carvaga,R (2304)-Vlasak,R (2233) ICCF email 2017}) 15... Bh7 {[%emt 0:20:01]} 16. Rfc1 {[%emt 0:04:04]} a5 {[%emt 0:05:22]} 17. b5 {[%emt 0:06:13]} c5 $1 {[%emt 0:05:59] [#]} 18. Nxd5 $1 {[%emt 0:12:21]} Nxd5 {[%emt 0:00:08]} 19. Bxe4 {[%emt 0:00:04]} Bxe4 {[%emt 0:00:08]} 20. Qxe4 {[%emt 0:00:07]} cxd4 {[%emt 0:00:31]} 21. exd4 {[%emt 0:00:10]} Rad8 {[%emt 0:00:06] White must now prevent ...f6.} 22. Qf3 {[%emt 0:01:52]} Nf6 {[%emt 0:02:29]} 23. Qc3 {[%emt 0:16:25]} Nd5 {[%emt 0:08:14]} 24. Qf3 {[%emt 0:01:54]} Nf6 {[%emt 0:00:08]} 25. Qc3 {[%emt 0:00:07]} Nd5 {[%emt 0:00:03]} 26. Qd2 {[%emt 0:03:12]} Qf6 {[%emt 0:03:35]} 27. Re1 {[%emt 0:00:49]} Nf4 {[%emt 0:02:14]} 28. Rad1 {[%emt 0:00:59]} Qf5 {[%emt 0:02:00]} 29. Qe3 {[%emt 0:05:49]} (29. Qxa5 $2 f6 30. Nf3 {[#]} Nxg2 $1 31. Kxg2 (31. Rxe8+ $2 Rxe8 32. Qc3 Qg4 $19) 31... Qg4+ 32. Kh1 Qxf3+ 33. Kg1 Rxe1+ 34. Qxe1 Rd5 $17) 29... f6 {[%emt 0:06:20] [#]} 30. g4 $1 {[%emt 0:00:00]} Qg5 {[%emt 0:00:00][%mdl 64] [#] Pin} 31. h4 $1 {[%emt 0:03:52]} Qxh4 {[%emt 0:02:48] The position is equal.} 32. Qxf4 {[%emt 0:00:04]} fxe5 {[%emt 0:00:06]} 33. dxe5 {[%emt 0:00:38]} Rxd1 {[%emt 0:00:38]} 34. Rxd1 {[%emt 0:03:31]} Rxe5 {[%emt 0:06:45]} 35. Qxe5 {[%emt 0:02:12] Threatening mate with Qe6+.} Qxg4+ {[%emt 0:00:06]} 36. Kh2 {[%emt 0:00:04]} Qh4+ {[%emt 0:00:44]} 37. Kg2 {[%emt 0:00:20] White wants to mate with Rd4.} Qg4+ {[%emt 0:00:02]} 38. Qg3 {[%emt 0:01:09]} Qxd1 {[%emt 0:00:03]} 39. Qb8+ {[%emt 0:00:04]} Kh7 {[%emt 0:00:12] And now ...Qg4+ would win.} 40. Qxb7 {[%emt 0:00:04]} Qg4+ {[%emt 0:00:05]} 41. Kh2 {[%emt 0:00:12] aiming for Qd5.} Qh4+ {[%emt 0:00:40]} 42. Kg1 {[%emt 0:00:09] Qd5 is the strong threat.} Qg4+ {[%emt 0:00:22] An even fight not without its subleties.  Weighted Error Value: White=0.05 (flawless) /Black=0.03 (flawless)} 1/2-1/2

[Event "2nd Bassano Easter 2022"]
[Site "Bassano del Grappa"]
[Date "2022.04.17"]
[Round "7.3"]
[White "Nesterov, Arseniy"]
[Black "Fier, Alexandr"]
[Result "1/2-1/2"]
[WhiteElo "2522"]
[BlackElo "2583"]
[Annotator "TA"]
[PlyCount "55"]
[EventDate "2022.04.14"]
[EventType "swiss"]
[EventCountry "ITA"]
[SourceTitle "playchess.com"]
[Source "ChessBase"]
[SourceQuality "1"]
[TimeControl "30/3600+30:1800+30"]

{[%evp 25,42,0,0,-33,0,0,0,0,0,0,0,-9,0,-12,-12,-12,0,-10,-8]} 1. d4 {[%emt 0:00:03]} d5 {[%emt 0:00:05]} 2. c4 {[%emt 0:00:05]} e6 {[%emt 0:00:02]} 3. Nf3 {[%emt 0:00:07]} Nf6 {[%emt 0:00:04]} 4. Nc3 {[%emt 0:00:06]} Be7 {[%emt 0:00:04]} 5. Bg5 {[%emt 0:00:08]} O-O {[%emt 0:00:06]} 6. e3 {[%emt 0:00:06]} h6 {[%emt 0:00:06]} 7. Bh4 {[%emt 0:00:07]} b6 8. cxd5 Nxd5 9. Bxe7 Qxe7 10. Nxd5 exd5 11. Rc1 Be6 12. Qb3 c5 13. Qa3 Rc8 14. Bb5 $1 {[%mdl 4] now scores much better than the old 14.Be2. D59: Queen's Gambit Declined: Tartakower Defence: Main line (8 cxd5 Nxd5).} Kf8 15. dxc5 $1 {The position is equal.} Rxc5 16. Rxc5 Qxc5 17. Kd2 Qxa3 18. bxa3 Nd7 19. Bxd7 Bxd7 20. Rc1 Ke7 21. Kd3 Kd6 {[#] An even fight not without its subleties.  Weighted Error Value: White=0.09 (flawless) /Black=0.05 (flawless)} {Predecessor:} 22. Kd4 $146 Re8 23. Nd2 g5 24. f3 f6 25. Nb1 g4 26. Nc3 gxf3 27. gxf3 Re5 28. h4 {1-0 (40) Nakamura,H (2750)-So,W (2778) Chess.com INT 2022} 1/2-1/2

[Event "2nd Bassano Easter 2022"]
[Site "Bassano del Grappa"]
[Date "2022.04.17"]
[Round "7.4"]
[White "Petrov, Martin"]
[Black "Nandhidhaa, P V"]
[Result "*"]
[WhiteElo "2542"]
[BlackElo "2380"]
[Annotator "TA"]
[PlyCount "31"]
[EventDate "2022.04.14"]
[EventType "swiss"]
[EventCountry "ITA"]
[SourceTitle "playchess.com"]
[Source "ChessBase"]
[SourceQuality "1"]
[TimeControl "30/3600+30:1800+30"]

{[%evp 4,4,7]} 1. Nf3 {[%emt 0:00:04]} Nf6 {[%emt 0:01:59]} 2. c4 {[%emt 0:00:00]} c5 {[%emt 0:00:57] A rather calm draw.} {Predecessor:} 3. Nc3 b6 4. d4 cxd4 5. Nxd4 Bb7 6. f3 {A31: Symmetrical English: 2 Nf3 Nf6 3 d4.} Nc6 7. e4 e6 8. Be3 Bc5 9. Qd2 O-O 10. Be2 Qe7 11. O-O d5 12. cxd5 Nxd4 13. Bxd4 exd5 14. exd5 Nxd5 15. Nxd5 Bxd5 16. Rfe1 {½-½ (32) Caruana,F (2781)-Kamsky,G (2658) Chess.com INT 2022} *

[Event "2nd Bassano Easter 2022"]
[Site "Bassano del Grappa"]
[Date "2022.04.17"]
[Round "7.5"]
[White "Bosiocic, Marin"]
[Black "Colbow, Collin"]
[Result "0-1"]
[ECO "D03"]
[WhiteElo "2522"]
[BlackElo "2370"]
[Annotator "TA"]
[PlyCount "78"]
[EventDate "2022.04.14"]
[EventType "swiss"]
[EventCountry "ITA"]
[SourceTitle "playchess.com"]
[Source "ChessBase"]
[SourceQuality "1"]
[TimeControl "30/3600+30:1800+30"]

{[%evp 18,78,0,-4,22,28,12,22,18,14,35,16,33,8,14,0,9,14,22,0,0,0,0,0,0,0,0,0,0,0,0,-45,-40,-32,-37,-44,-42,-93,-93,-467,-468,-446,-435,-569,-569,-569,-195,-573,-580,-981,-987,-1017,-1037,-1070,-985,-908,-670,-1741,-1658,-5691,-4714,-5043,-2120]} 1. d4 {[%emt 0:00:13]} Nf6 {[%emt 0:00:08]} 2. Nf3 {[%emt 0:00:05]} g6 {[%emt 0:00:14]} 3. Bg5 {[%emt 0:00:07]} Bg7 {[%emt 0:00:45]} 4. Nbd2 {[%emt 0:00:08]} d5 {[%emt 0:01:27]} 5. e3 {[%emt 0:00:47]} O-O {[%emt 0:00:34]} 6. Be2 {[%emt 0:00:39]} c5 {[%emt 0:01:11]} 7. c3 {[%emt 0:00:51]} Nbd7 {[%emt 0:00:33]} 8. O-O {[%emt 0:01:33]} b6 {[%emt 0:00:49]} 9. h3 {[%emt 0:07:35]} Bb7 {[%emt 0:00:21]} 10. b4 {[%emt 0:06:34]} Ne4 {[%emt 0:07:02] D03: 1 d4 d5 2 Nf3 Nf6 3 Bg5, including Torre Attack with early ...d5.} 11. Nxe4 {[%emt 0:01:28]} dxe4 {[%emt 0:00:06]} 12. Nd2 {[%emt 0:00:09]} cxd4 {[%emt 0:00:38] The position is equal.} 13. cxd4 {[%emt 0:00:24]} Nf6 {[%emt 0:00:32] [#]} 14. Rc1 $146 {[%emt 0:06:21]} ({Predecessor:} 14. Qa4 a6 15. Rfc1 Qd5 16. Bf4 b5 17. Qd1 Rfc8 18. a4 Nd7 19. Rxc8+ Rxc8 20. axb5 {1-0 (35) Vassallo Barroche,M (2398)-Marcal,A (1770) Figueira da Foz 2015}) 14... Qd7 {[%emt 0:08:24]} 15. Bc4 {[%emt 0:05:20]} Rac8 {[%emt 0:02:00]} 16. a4 {[%emt 0:02:54]} Nd5 {[%emt 0:03:45]} 17. Qb3 {[%emt 0:04:09]} f5 {[%emt 0:01:13]} 18. Nb1 {[%emt 0:07:51]} (18. Bf4 $5) 18... e6 {[%emt 0:07:41]} 19. Nc3 {[%emt 0:02:38]} h6 {[%emt 0:00:09]} 20. Bxd5 {[%emt 0:01:32]} Bxd5 {[%emt 0:05:41]} 21. Nxd5 {[%emt 0:00:12]} Qxd5 {[%emt 0:00:21]} 22. Qxd5 {[%emt 0:00:21]} exd5 {[%emt 0:00:04]} 23. Be7 {[%emt 0:01:43]} Rfe8 {[%emt 0:00:13] [#] Hoping for ...Rxc1.} 24. Rxc8 {[%emt 0:02:43]} Rxc8 $11 {[%emt 0:00:04][%mdl 4096] Endgame KRB-KRB} 25. b5 {[%emt 0:00:45]} Kf7 {[%emt 0:04:19]} 26. Bd6 {[%emt 0:02:55]} Ke6 {[%emt 0:00:35]} 27. Bg3 {[%emt 0:00:21]} ({White should try} 27. Bh2 $1 $15) 27... g5 $17 {[%emt 0:02:40][%cal Of5f4]} 28. a5 $2 {[%emt 0:03:56][%mdl 8192] White does not recover from this.} (28. Bh2 $17) 28... bxa5 $19 {[%emt 0:02:56][%cal Of5f4]} 29. Ra1 {[%emt 0:00:20]} f4 {[%emt 0:00:07]} 30. exf4 {[%emt 0:00:00]} Bxd4 {[%emt 0:00:00]} 31. Rxa5 {[%emt 0:01:24]} Rc1+ {[%emt 0:01:54]} 32. Kh2 {[%emt 0:00:06]} Bb6 {[%emt 0:29:48] Black is clearly winning.} 33. Ra2 {[%emt 0:03:21]} d4 {[%emt 0:00:59]} 34. fxg5 {[%emt 0:00:26]} hxg5 {[%emt 0:00:06][%cal Bh6g5,Bg5h4][%mdl 32]} 35. h4 {[%emt 0:00:41]} gxh4 {[%emt 0:00:57]} 36. Bf4 {[%emt 0:01:15]} Rb1 {[%emt 0:00:25] [#] ...Kf5 is the strong threat.} 37. g3 {[%emt 0:03:19]} Kf5 {[%emt 0:01:37] aiming for ...hxg3+.} 38. Bh6 {[%emt 0:01:09]} Kg4 {[%emt 0:03:56] ( -> ...Kf3)} 39. gxh4 {[%emt 0:00:05]} Kf3 {[%emt 0:00:09] Weighted Error Value: White=0.99/Black=0.03 (flawless)} 0-1

[Event "2nd Bassano Easter 2022"]
[Site "Bassano del Grappa"]
[Date "2022.04.17"]
[Round "7.6"]
[White "Spyratos, Nikolaos"]
[Black "Gallego Alcazar, Andres Felipe"]
[Result "1-0"]
[ECO "E11"]
[WhiteElo "2100"]
[BlackElo "2523"]
[Annotator "TA"]
[PlyCount "81"]
[EventDate "2022.04.14"]
[EventType "swiss"]
[EventCountry "ITA"]
[SourceTitle "playchess.com"]
[Source "ChessBase"]
[SourceQuality "1"]
[TimeControl "30/3600+30:1800+30"]

{[%evp 9,81,26,24,17,29,14,14,-49,-60,-45,-17,-15,34,25,38,30,77,53,57,45,52,66,123,120,133,84,77,80,72,83,134,122,221,181,420,416,396,365,549,533,1136,1112,1049,1061,1004,1056,1083,1066,1047,1010,1164,1161,1214,1231,1191,1218,1154,1092,1201,1166,1567,1568,1381,1341,7174,6053,7163,7156,6012,5531,6350,6234,1889,1665]} 1. d4 {[%emt 0:00:36]} Nf6 {[%emt 0:00:16]} 2. c4 {[%emt 0:00:14]} e6 {[%emt 0:00:06]} 3. Nf3 {[%emt 0:00:08]} Bb4+ {[%emt 0:00:05]} 4. Nbd2 {[%emt 0:00:09]} Be7 {[%emt 0:00:15]} 5. e4 {[%emt 0:00:39][%cal Be2e4,Be4e5][%mdl 32]} d5 {[%emt 0:00:05]} 6. e5 {[%emt 0:02:35] E11: Bogo-Indian.} Nfd7 {[%emt 0:00:10]} 7. cxd5 {[%emt 0:08:32]} exd5 {[%emt 0:00:21] [#]} 8. h4 $146 {[%emt 0:05:26]} (8. Bd3 $11) ({Predecessor:} 8. Bd3 c5 9. O-O Nc6 10. Re1 O-O 11. Bc2 cxd4 12. Nb3 Nb4 13. Bb1 d3 14. a3 {1-0 (53) Murshed,N (2404)-Delgado Ramirez,N (2622) Krasnaya Polyana 2021}) 8... c5 $1 $15 {[%emt 0:09:26]} 9. Ng5 {[%emt 0:00:13] [#] Threatens to win with e6.} Bxg5 {[%emt 0:06:01]} (9... h6 {seems wilder.} 10. Nxf7 Kxf7 11. Qf3+ Nf6) 10. hxg5 {[%emt 0:00:07]} cxd4 {[%emt 0:00:57]} (10... Nc6 $11) 11. f4 $36 {[%emt 0:02:07][%mdl 2048] White is pushing.} Nc6 {[%emt 0:05:23]} 12. Nb3 {[%emt 0:00:19] Against Nc5} Nf8 {[%emt 0:06:32]} (12... Qe7 $11) 13. Bb5 {[%emt 0:08:14]} Bd7 {[%emt 0:14:43]} 14. Bxc6 {[%emt 0:05:41]} ({Reject} 14. Nxd4 $6 Nxd4 15. Bxd7+ Qxd7 $11) 14... bxc6 {[%emt 0:00:10]} 15. Qxd4 {[%emt 0:00:15]} Ne6 {[%emt 0:05:51]} ({Black should play} 15... Bf5 $14) 16. Qf2 $16 {[%emt 0:02:24]} Qe7 {[%emt 0:03:29]} 17. O-O {[%emt 0:03:08]} (17. Be3 $142) 17... g6 {[%emt 0:02:02]} 18. Be3 {[%emt 0:00:06] Prevents c5.} a5 {[%emt 0:05:54]} 19. Nc5 {[%emt 0:05:20] &Bianco is more active.} Nxc5 {[%emt 0:01:57]} (19... O-O $142) 20. Bxc5 {[%emt 0:00:26]} Qe6 {[%emt 0:00:32]} (20... Qd8 $16) 21. Qg3 {[%emt 0:04:50]} Qg4 $2 {[%emt 0:03:08]} (21... h5 22. gxh6 Qg4) 22. Qc3 $18 {[%emt 0:00:20][%cal Oe5e6] aiming for e6!} Qe6 {[%emt 0:00:39]} 23. Rf3 {[%emt 0:00:55]} h5 {[%emt 0:00:54]} (23... Bc8 {might work better.} 24. Rh3 Bb7) 24. Raf1 {[%emt 0:01:27][%cal Of4f5] White is clearly winning.} Rh7 {[%emt 0:00:04]} 25. f5 {[%emt 0:01:21]} gxf5 {[%emt 0:00:05]} 26. Rxf5 {[%emt 0:00:07] Rf6 is the strong threat.} d4 {[%emt 0:02:39]} 27. Qxd4 {[%emt 0:00:42]} Qd5 {[%emt 0:00:24]} 28. Qxd5 {[%emt 0:01:32]} cxd5 {[%emt 0:00:01]} 29. Rf6 {[%emt 0:00:07] Black must now prevent g6.} O-O-O {[%emt 0:01:46]} 30. Rc1 {[%emt 0:00:00] White wants to mate with Bd4+.} Kb7 {[%emt 0:00:00]} 31. Rb6+ {[%emt 0:00:49]} Ka8 {[%emt 0:00:52]} 32. Ra6+ {[%emt 0:00:13][%cal Bb6a6,Ba6a5,Ba5a7,Ba7e7][%mdl 32]} Kb8 {[%emt 0:05:20]} 33. Rxa5 {[%emt 0:00:05]} Rc8 {[%emt 0:02:57]} 34. Rc3 {[%emt 0:00:19]} Kc7 {[%emt 0:07:27]} 35. Ra7+ {[%emt 0:00:13]} Kd8 {[%emt 0:00:22] [#]} 36. Be7+ $1 {[%emt 0:00:17][%mdl 512]} Ke8 {[%emt 0:00:17]} (36... Kxe7 37. Rxc8) 37. Rxc8+ {[%emt 0:00:08]} Bxc8 {[%emt 0:00:03]} 38. Bf6 {[%emt 0:00:08][%cal Og5g6] White threatens g6! and mate.} Bf5 {[%emt 0:01:26]} 39. Re7+ {[%emt 0:00:05]} Kf8 {[%emt 0:00:25]} 40. g6 {[%emt 0:00:08]} Rg7 {[%emt 0:01:26]} 41. Ra7 {[%emt 0:00:33] Weighted Error Value: White=0.12 (very precise) /Black=0.41} 1-0

[Event "2nd Bassano Easter 2022"]
[Site "Bassano del Grappa"]
[Date "2022.04.17"]
[Round "7.7"]
[White "Abel, Dennes"]
[Black "Kolb, Tobias"]
[Result "0-1"]
[ECO "A13"]
[WhiteElo "2442"]
[BlackElo "2316"]
[Annotator "TA"]
[PlyCount "48"]
[EventDate "2022.04.14"]
[EventType "swiss"]
[EventCountry "ITA"]
[SourceTitle "playchess.com"]
[Source "ChessBase"]
[SourceQuality "1"]
[TimeControl "30/3600+30:1800+30"]

{[%evp 13,48,0,10,0,10,-8,0,-93,-26,-39,-9,-22,-23,-9,-11,-8,-16,-49,-22,-59,-22,-64,-79,-95,-77,-162,-120,-142,-137,-707,-682,-1074,-1018,-953,-888,-863,-841]} 1. Nf3 {[%emt 0:00:05]} d5 {[%emt 0:00:06]} 2. e3 {[%emt 0:00:08]} Nf6 {[%emt 0:00:13]} 3. c4 {[%emt 0:00:11]} e6 {[%emt 0:00:04]} 4. Nc3 {[%emt 0:00:25]} Be7 {[%emt 0:00:55]} 5. b3 {[%emt 0:00:37]} O-O {[%emt 0:00:18]} 6. Bb2 {[%emt 0:00:28]} c5 {[%emt 0:01:00]} 7. cxd5 {[%emt 0:00:27]} Nxd5 {[%emt 0:00:40]} 8. Qc2 {[%emt 0:01:45] A13: English Opening: 1...e6.} Nc6 {[%emt 0:10:20][%cal Bb8c6,Bc6e7,Be7g6][%mdl 32]} 9. h4 {[%emt 0:00:08]} f5 {[%emt 0:11:06] [#]} 10. Ng5 $146 {[%emt 0:12:43]} (10. Rc1 $11 {remains equal.}) ({Predecessor:} 10. g4 Nxc3 11. dxc3 e5 12. Bc4+ Kh8 13. Ng5 e4 14. Rd1 Qe8 15. Ne6 Bxe6 16. Bxe6 {0-1 (35) Duda,J (2743)-So,W (2770) chess24.com INT 2021}) 10... Bf6 {[%emt 0:05:49]} (10... Ndb4 $17 11. Qb1 Ne5) 11. a3 {[%emt 0:04:31]} Nce7 {[%emt 0:07:28]} 12. Be2 {[%emt 0:20:13]} h6 {[%emt 0:09:36]} 13. Nf3 {[%emt 0:00:21]} b6 {[%emt 0:04:30]} 14. O-O {[%emt 0:03:13]} Bb7 {[%emt 0:01:15]} 15. Rfd1 {[%emt 0:02:24]} Rc8 {[%emt 0:02:51]} 16. Rac1 {[%emt 0:01:03]} Ng6 {[%emt 0:03:19]} 17. Nxd5 {[%emt 0:05:18]} Bxd5 {[%emt 0:00:26]} ({Don't play} 17... Qxd5 18. Bxf6 Rxf6 19. d4 $14) 18. g3 {[%emt 0:03:50]} Bxh4 {[%emt 0:06:15] &Nero is more active.} 19. b4 {[%emt 0:07:12]} (19. Nxh4 $17 Nxh4 20. f4) 19... Bf6 {[%emt 0:00:49] ...Bxb2 is the strong threat.} 20. Bxf6 {[%emt 0:00:22]} Qxf6 {[%emt 0:00:02]} ({Weaker is} 20... gxf6 21. bxc5 Rxc5 22. Qa4 $15) 21. Qa4 $2 {[%emt 0:00:54][%mdl 8192] Now White is beyond hope.} (21. bxc5 $17 Rxc5 22. Qd3) 21... f4 $19 {[%emt 0:00:37] Black is clearly winning.} 22. exf4 {[%emt 0:00:54] [#]} Nxf4 $1 {[%emt 0:00:15][%mdl 512]} 23. gxf4 {[%emt 0:01:15]} Qxf4 {[%emt 0:00:03] ( -> ...Qg4+)} 24. Rc3 {[%emt 0:00:15]} Qg4+ {[%emt 0:00:03] Weighted Error Value: White=0.87/Black=0.19 (very precise)} 0-1